bitfinex/quotes_BTCUSD_20241110
["timestamp","ask_amount","ask_price","bid_price","bid_amount"]
[1731257206443,0.00168,79719.0,79718.0,0.0828]
[1731257206651,0.00168,79719.0,79718.0,0.37754221]
[1731257207053,0.00168,79719.0,79718.0,0.4789931]
[1731257207188,0.2636578,79726.0,79722.0,0.071]
[1731257207189,0.18833456,79725.0,79722.0,0.071]
[1731257207400,0.18833456,79725.0,79724.0,0.1039]
[1731257207619,0.2636578,79726.0,79725.0,0.023]
[1731257207824,0.2636578,79726.0,79725.0,0.31441055]
[1731257208048,0.2636578,79726.0,79725.0,0.52523221]
[1731257208249,0.2636578,79726.0,79725.0,0.69069675]
[1731257208465,0.2636578,79726.0,79725.0,0.52523221]
[1731257208668,0.2636578,79726.0,79725.0,0.690698]
[1731257209123,0.2636578,79726.0,79725.0,0.52523221]
[1731257210550,0.2636578,79726.0,79725.0,0.39929]
[1731257215325,0.2636578,79726.0,79725.0,0.37629]
[1731257219321,0.2656578,79726.0,79725.0,0.37629]
[1731257220941,0.2756578,79726.0,79725.0,0.37629]
[1731257225528,0.40160001,79726.0,79725.0,0.37629]
[1731257227041,0.2756578,79726.0,79725.0,0.45899]
[1731257228329,0.2736578,79726.0,79725.0,0.37629]
[1731257228763,0.2756578,79726.0,79725.0,0.37629]
[1731257228965,0.2736578,79726.0,79725.0,0.37629]
[1731257229284,0.2756578,79726.0,79725.0,0.37629]
[1731257229479,0.65667122,79726.0,79725.0,0.37629]
[1731257230135,0.014,79711.0,79710.0,0.00084]
[1731257230344,0.26539521,79711.0,79710.0,0.00084]
[1731257230644,0.007,79694.0,79693.0,0.0827]
[1731257230803,0.002,79693.0,79686.0,0.0827]
[1731257231003,0.002,79690.0,79686.0,0.0827]
[1731257231209,0.002,79692.0,79686.0,0.0827]
[1731257231844,0.002,79694.0,79686.0,0.0827]
[1731257232232,0.002,79695.0,79686.0,0.0827]
[1731257232460,0.18833456,79708.0,79695.0,0.0827]
[1731257232641,0.18833456,79708.0,79703.0,0.10145089]
[1731257232845,0.18833456,79708.0,79704.0,0.0827]
[1731257233183,0.002,79705.0,79704.0,0.0827]
[1731257235794,0.01,79711.0,79704.0,0.0827]
[1731257235998,0.002,79711.0,79704.0,0.0827]
[1731257236842,0.002,79712.0,79704.0,0.0827]
[1731257237060,0.18833456,79725.0,79705.0,0.0479]
[1731257237061,0.002,79720.0,79705.0,0.0479]
[1731257237272,0.18833456,79715.0,79706.0,0.0827]
[1731257237501,0.002,79717.0,79706.0,0.0827]
[1731257237714,0.002,79720.0,79711.0,0.0827]
[1731257237938,0.002,79717.0,79711.0,0.0827]
[1731257238360,0.002,79720.0,79716.0,0.10145089]
[1731257238574,0.002,79722.0,79717.0,0.10145089]
[1731257238842,0.18833456,79725.0,79718.0,0.0827]
[1731257239253,0.002,79722.0,79718.0,0.0827]
[1731257239668,0.002,79720.0,79719.0,0.37632]
[1731257243855,0.13794221,79720.0,79719.0,0.37632]
[1731257244078,0.26338121,79720.0,79719.0,0.37632]
[1731257244432,0.13794221,79720.0,79719.0,0.37632]
[1731257244862,0.26338121,79720.0,79719.0,0.37632]
[1731257247079,0.26538121,79720.0,79719.0,0.37632]
[1731257247317,0.32882314,79720.0,79719.0,0.37632]
[1731257248281,0.32682314,79720.0,79719.0,0.37632]
[1731257249310,0.13794221,79720.0,79719.0,0.37632]
[1731257250921,0.13962221,79720.0,79719.0,0.37632]
[1731257252612,0.13762221,79720.0,79719.0,0.37632]
[1731257252815,0.26506121,79720.0,79719.0,0.37632]
[1731257253213,0.13962221,79720.0,79719.0,0.37632]
[1731257253426,0.26506121,79720.0,79719.0,0.37632]
[1731257253918,0.13962221,79720.0,79719.0,0.37632]
[1731257254373,0.26506121,79720.0,79719.0,0.37632]
[1731257254570,0.13962221,79720.0,79719.0,0.37632]
[1731257255353,0.26506121,79720.0,79719.0,0.37632]
[1731257256327,0.00168,79720.0,79719.0,0.45252]
[1731257256519,0.00168,79720.0,79719.0,0.50032]
[1731257256754,0.00368,79720.0,79719.0,0.50032]
[1731257257148,0.00168,79720.0,79719.0,0.50032]
[1731257257514,0.00368,79720.0,79719.0,0.50032]
[1731257264650,0.00368,79720.0,79719.0,0.62576]
[1731257265415,0.00368,79720.0,79719.0,0.73797815]
[1731257265623,0.00368,79720.0,79719.0,0.62576]
[1731257266118,0.00368,79720.0,79719.0,0.73797815]
[1731257267193,0.00368,79720.0,79719.0,0.62576]
[1731257267370,0.00368,79720.0,79719.0,0.73807008]
[1731257268176,0.00368,79720.0,79719.0,0.62576]
[1731257268955,0.00368,79720.0,79719.0,0.73806874]
[1731257269906,0.00368,79720.0,79719.0,0.73794377]
[1731257271790,0.00368,79720.0,79719.0,0.62563503]
[1731257272599,0.00368,79720.0,79719.0,0.73792461]
[1731257273440,0.00368,79720.0,79719.0,0.73792667]
[1731257274164,0.00168,79720.0,79719.0,0.77457724]
[1731257274609,0.2636578,79726.0,79725.0,0.125431]
[1731257274847,0.2636578,79726.0,79725.0,0.8773341]
[1731257277565,0.2636578,79726.0,79725.0,1.04285984]
[1731257277736,0.2636578,79726.0,79725.0,0.8773341]
[1731257277932,0.2636578,79726.0,79725.0,1.04285155]
[1731257278137,0.2636578,79726.0,79725.0,1.04285337]
[1731257278469,0.2636578,79726.0,79725.0,0.8773341]
[1731257278668,0.2636578,79726.0,79725.0,1.04284189]
[1731257278867,0.2636578,79726.0,79725.0,0.8773341]
[1731257279268,0.2636578,79726.0,79725.0,1.04278336]
[1731257279819,0.2636578,79726.0,79725.0,0.8773341]
[1731257280347,0.2636578,79726.0,79725.0,0.91829388]
[1731257280544,0.2636578,79726.0,79725.0,0.81684299]
[1731257282289,0.2636578,79726.0,79725.0,0.66790078]
[1731257286842,0.2636578,79726.0,79725.0,0.89384299]
[1731257287045,0.2636578,79726.0,79725.0,1.08230719]
[1731257287272,0.2636578,79726.0,79725.0,0.91684299]
[1731257298020,0.2636578,79726.0,79725.0,0.76790078]
[1731257298438,0.2656578,79726.0,79725.0,0.76790078]
[1731257298633,0.2636578,79726.0,79725.0,0.76790078]
[1731257300664,0.2636578,79726.0,79725.0,0.501841]
[1731257301067,0.2636578,79726.0,79725.0,0.61403622]
[1731257301267,0.2636578,79726.0,79725.0,0.501841]
[1731257301268,0.2656578,79726.0,79725.0,0.501841]
[1731257301488,0.2636578,79726.0,79725.0,0.501841]
[1731257302066,0.2656578,79726.0,79725.0,0.501841]
[1731257304495,0.2706578,79726.0,79725.0,0.501841]
[1731257304693,0.39660001,79726.0,79725.0,0.37641]
[1731257305036,0.52702901,79726.0,79725.0,0.37641]
[1731257305403,0.65297122,79726.0,79725.0,0.37641]
[1731257305611,0.52702901,79726.0,79725.0,0.37641]
[1731257305816,0.52872901,79726.0,79725.0,0.37641]
[1731257305981,0.5703918,79726.0,79725.0,0.37641]
[1731257306425,0.5723918,79726.0,79725.0,0.37641]
[1731257306802,0.5703918,79726.0,79725.0,0.37641]
[1731257308052,0.5723918,79726.0,79725.0,0.37641]
[1731257308234,0.5703918,79726.0,79725.0,0.37641]
[1731257310471,0.5686918,79726.0,79725.0,0.37641]
[1731257311023,0.4432628,79726.0,79725.0,0.37641]
[1731257311264,0.5686918,79726.0,79725.0,0.37641]
[1731257311869,0.5666918,79726.0,79725.0,0.37641]
[1731257312072,0.5686918,79726.0,79725.0,0.37641]
[1731257314263,0.5706918,79726.0,79725.0,0.37641]
[1731257314476,0.5723918,79726.0,79720.0,0.00084]
[1731257314675,0.23888789,79721.0,79720.0,0.00084]
[1731257314876,0.44132209,79721.0,79720.0,0.00084]
[1731257316256,0.44332209,79721.0,79720.0,0.00084]
[1731257316391,0.44132209,79721.0,79720.0,0.00084]
[1731257319143,0.47369664,79721.0,79720.0,0.00084]
[1731257319481,0.47169664,79721.0,79720.0,0.00084]
[1731257319998,0.44132209,79721.0,79720.0,0.00084]
[1731257320205,0.26337921,79721.0,79720.0,0.00084]
[1731257321158,0.26083456,79721.0,79720.0,0.00084]
[1731257321323,0.26283456,79721.0,79720.0,0.00084]
[1731257322276,0.13739756,79721.0,79720.0,0.00084]
[1731257322478,0.26283456,79721.0,79720.0,0.00084]
[1731257323094,0.13739756,79721.0,79720.0,0.00084]
[1731257331137,0.13907756,79721.0,79720.0,0.00084]
[1731257332068,0.26451456,79721.0,79720.0,0.00084]
[1731257332770,0.13907756,79721.0,79720.0,0.00084]
[1731257333123,0.00368,79721.0,79720.0,0.258979]
[1731257333416,0.00168,79721.0,79720.0,0.258979]
[1731257334645,0.00368,79721.0,79720.0,0.258979]
[1731257335565,0.00168,79721.0,79720.0,0.258979]
[1731257336766,0.00368,79721.0,79720.0,0.258979]
[1731257337809,0.00168,79721.0,79720.0,0.258979]
[1731257337999,0.00368,79721.0,79720.0,0.258979]
[1731257338624,0.00168,79721.0,79720.0,0.258979]
[1731257340170,0.00368,79721.0,79720.0,0.258979]
[1731257341436,0.13907756,79721.0,79720.0,0.13354]
[1731257341643,0.13907756,79721.0,79720.0,0.00084]
[1731257342047,0.83907756,79721.0,79720.0,0.00084]
[1731257343262,0.88041722,79721.0,79720.0,0.00084]
[1731257343460,1.00585422,79721.0,79720.0,0.00084]
[1731257344265,1.04608201,79721.0,79720.0,0.00084]
[1731257347120,1.04808201,79721.0,79720.0,0.00084]
[1731257347333,1.14608201,79721.0,79720.0,0.00084]
[1731257347566,1.14778201,79721.0,79720.0,0.00084]
[1731257347821,1.22820888,79721.0,79720.0,0.00084]
[1731257348267,1.22990888,79721.0,79720.0,0.00084]
[1731257348483,0.24035924,79711.0,79710.0,0.00084]
[1731257348771,0.36630145,79711.0,79710.0,0.00084]
[1731257349635,0.36430145,79711.0,79710.0,0.00084]
[1731257349860,0.36630145,79711.0,79710.0,0.00084]
[1731257350311,0.36430145,79711.0,79710.0,0.00084]
[1731257350523,0.36630145,79711.0,79710.0,0.00084]
[1731257351175,1.06460145,79711.0,79710.0,0.00084]
[1731257351653,1.10488097,79711.0,79710.0,0.00084]
[1731257351873,0.58231365,79711.0,79710.0,0.00084]
[1731257352090,0.58401365,79711.0,79710.0,0.00084]
[1731257352564,0.71016454,79711.0,79710.0,0.00084]
[1731257352779,0.83610675,79711.0,79710.0,0.00084]
[1731257353135,0.83610675,79711.0,79704.0,0.00084]
[1731257353136,0.13891735,79705.0,79704.0,0.00084]
[1731257353386,0.66910545,79705.0,79704.0,0.00084]
[1731257353588,0.56765456,79705.0,79704.0,0.00084]
[1731257353845,0.54465456,79705.0,79704.0,0.00084]
[1731257356850,0.64610545,79705.0,79704.0,0.00084]
[1731257357316,0.54465456,79705.0,79704.0,0.00084]
[1731257359178,0.66910545,79705.0,79704.0,0.00084]
[1731257359693,0.56765456,79705.0,79704.0,0.00084]
[1731257359894,0.69359677,79705.0,79704.0,0.00084]
[1731257360277,0.79504766,79705.0,79704.0,0.00084]
[1731257360733,1.49334766,79705.0,79704.0,0.00084]
[1731257360880,0.26192335,79701.0,79700.0,0.008]
[1731257361065,0.46468363,79701.0,79700.0,0.008]
[1731257361287,0.59062584,79701.0,79700.0,0.008]
[1731257364383,0.13694135,79690.0,79689.0,0.00084]
[1731257364604,0.53847718,79690.0,79689.0,0.00084]
[1731257365147,0.54047718,79690.0,79689.0,0.00084]
[1731257365374,0.66641939,79690.0,79689.0,0.00084]
[1731257365585,0.66441939,79690.0,79689.0,0.00084]
[1731257365786,0.66641939,79690.0,79689.0,0.00084]
[1731257365991,0.66441939,79690.0,79689.0,0.00084]
[1731257366208,0.53847718,79690.0,79689.0,0.00084]
[1731257366429,0.46433445,79690.0,79689.0,0.00084]
[1731257367400,0.46633445,79690.0,79689.0,0.00084]
[1731257367650,0.58235294,79690.0,79689.0,0.00084]
[1731257367920,0.58035294,79690.0,79689.0,0.00084]
[1731257368124,0.70429515,79690.0,79689.0,0.00084]
[1731257368772,0.70129515,79690.0,79689.0,0.00084]
[1731257368991,0.70529515,79690.0,79689.0,0.00084]
[1731257369203,0.57935294,79690.0,79689.0,0.00084]
[1731257369413,0.57735294,79690.0,79689.0,0.00084]
[1731257370119,0.57935294,79690.0,79689.0,0.00084]
[1731257370324,0.57535294,79690.0,79689.0,0.00084]
[1731257370766,0.68080383,79690.0,79689.0,0.00084]
[1731257370970,0.72829515,79690.0,79689.0,0.00084]
[1731257371171,0.72829515,79690.0,79667.0,0.23443456]
[1731257371172,0.13596635,79674.0,79667.0,0.23443456]
[1731257371349,0.43788029,79674.0,79667.0,0.18833456]
[1731257371758,0.43788029,79674.0,79659.0,0.26363456]
[1731257372007,0.43788029,79674.0,79659.0,0.0753]
[1731257372235,0.43588029,79674.0,79660.0,0.18833456]
[1731257372852,0.43388029,79674.0,79660.0,0.18833456]
[1731257373055,0.43588029,79674.0,79660.0,0.18833456]
[1731257373276,0.27651772,79674.0,79660.0,0.18833456]
[1731257373480,0.17651772,79674.0,79673.0,0.12224]
[1731257373682,0.27796861,79674.0,79673.0,0.12224]
[1731257373924,0.49096138,79674.0,79673.0,0.07614]
[1731257375718,0.48896138,79674.0,79673.0,0.07614]
[1731257376123,0.49096138,79674.0,79673.0,0.07614]
[1731257376334,0.38951049,79674.0,79673.0,0.07614]
[1731257377017,0.17651772,79674.0,79673.0,0.07614]
[1731257380464,0.37953344,79674.0,79673.0,0.07614]
[1731257380724,0.48098433,79674.0,79673.0,0.00084]
[1731257380945,0.48298433,79674.0,79673.0,0.00084]
[1731257381563,0.48098433,79674.0,79673.0,0.00084]
[1731257381824,0.57948576,79674.0,79673.0,0.00084]
[1731257382509,0.67948576,79674.0,79673.0,0.00084]
[1731257382721,0.68148576,79674.0,79673.0,0.00084]
[1731257383014,0.67948576,79674.0,79673.0,0.00084]
[1731257383193,0.58098433,79674.0,79673.0,0.00084]
[1731257383863,1.28098433,79674.0,79673.0,0.00084]
[1731257384093,1.27898433,79674.0,79673.0,0.00084]
[1731257384400,1.28298433,79674.0,79673.0,0.00084]
[1731257384653,1.40892654,79674.0,79673.0,0.00084]
[1731257386021,1.28298433,79674.0,79673.0,0.00084]
[1731257386265,1.28098433,79674.0,79673.0,0.00084]
[1731257386680,1.28298433,79674.0,79673.0,0.00084]
[1731257388426,1.98128433,79674.0,79673.0,0.00084]
[1731257389506,1.97928433,79674.0,79673.0,0.00084]
[1731257389708,2.10722654,79674.0,79673.0,0.00084]
[1731257391425,2.26202654,79674.0,79673.0,0.00084]
[1731257392517,2.25802654,79674.0,79673.0,0.00084]
[1731257392719,2.26202654,79674.0,79673.0,0.00084]
[1731257394947,0.13399135,79658.0,79657.0,0.0461]
[1731257395151,0.13399635,79655.0,79654.0,0.26473456]
[1731257395350,0.36138945,79655.0,79654.0,0.0764]
[1731257395560,0.43643077,79655.0,79654.0,0.0764]
[1731257395774,0.55539605,79655.0,79654.0,0.0764]
[1731257396002,0.00645535,79651.0,79650.0,0.0456]
[1731257396239,0.25994456,79651.0,79650.0,0.0456]
[1731257397782,0.30156129,79651.0,79650.0,0.0456]
[1731257402028,0.30156129,79651.0,79650.0,0.04644]
[1731257402281,0.39227911,79651.0,79650.0,0.04644]
[1731257402498,0.25156129,79651.0,79650.0,0.04644]
[1731257404131,0.12601429,79651.0,79650.0,0.171989]
[1731257404366,0.12601429,79651.0,79650.0,0.12284]
[1731257405248,0.25156129,79651.0,79650.0,0.12284]
[1731257406097,0.25356129,79651.0,79650.0,0.12284]
[1731257406352,0.31556527,79651.0,79650.0,0.12284]
[1731257406572,0.25156129,79651.0,79650.0,0.12284]
[1731257408733,0.12601429,79651.0,79650.0,0.12284]
[1731257408941,0.25156129,79651.0,79650.0,0.12284]
[1731257410217,0.12601429,79651.0,79650.0,0.12284]
[1731257410442,0.25156129,79651.0,79650.0,0.12284]
[1731257410670,0.12601429,79651.0,79650.0,0.12284]
[1731257410875,0.24956129,79651.0,79650.0,0.12284]
[1731257411089,0.07794221,79651.0,79650.0,0.248389]
[1731257411346,0.07994221,79651.0,79650.0,0.248389]
[1731257411569,0.08439756,79651.0,79650.0,0.248389]
[1731257411990,0.07994221,79651.0,79650.0,0.248389]
[1731257413322,0.08162221,79651.0,79650.0,0.248389]
[1731257413531,0.08607756,79651.0,79650.0,0.12284]
[1731257413868,0.08407756,79651.0,79650.0,0.12284]
[1731257414073,0.08607756,79651.0,79650.0,0.12284]
[1731257414198,0.01407756,79651.0,79650.0,0.12284]
[1731257414427,0.01607756,79651.0,79650.0,0.248389]
[1731257415469,0.01607756,79651.0,79650.0,0.12284]
[1731257415862,0.01607756,79651.0,79650.0,0.248389]
[1731257416081,0.01607756,79651.0,79650.0,0.12284]
[1731257416289,0.16462456,79651.0,79650.0,0.12284]
[1731257416707,0.23924205,79651.0,79650.0,0.00084]
[1731257417130,0.31846745,79651.0,79650.0,0.00084]
[1731257417306,0.24384996,79651.0,79650.0,0.00084]
[1731257419146,0.24584996,79651.0,79650.0,0.00084]
[1731257420597,0.34384996,79651.0,79650.0,0.00084]
[1731257420789,0.44730085,79651.0,79650.0,0.00084]
[1731257421193,1.14560085,79651.0,79650.0,0.00084]
[1731257421441,1.16730954,79651.0,79650.0,0.00084]
[1731257421649,1.14560085,79651.0,79650.0,0.00084]
[1731257423620,1.04214996,79651.0,79650.0,0.00084]
[1731257423837,1.14360085,79651.0,79650.0,0.00084]
[1731257424044,1.14560085,79651.0,79650.0,0.00084]
[1731257424241,1.23575045,79651.0,79650.0,0.00084]
[1731257426404,1.23175045,79651.0,79650.0,0.00084]
[1731257426840,0.13001535,79643.0,79642.0,0.00142]
[1731257427072,0.43682518,79643.0,79642.0,0.00142]
[1731257427282,0.56276739,79643.0,79642.0,0.00142]
[1731257428849,0.56476739,79643.0,79642.0,0.00142]
[1731257429307,0.56276739,79643.0,79642.0,0.00142]
[1731257429758,0.56476739,79643.0,79642.0,0.00142]
[1731257429926,0.43882518,79643.0,79642.0,0.00142]
[1731257430952,0.44082518,79643.0,79642.0,0.00142]
[1731257431233,0.48015999,79643.0,79642.0,0.00142]
[1731257431910,0.47815999,79643.0,79642.0,0.00142]
[1731257432143,0.48015999,79643.0,79642.0,0.00142]
[1731257432329,0.6061022,79643.0,79642.0,0.00142]
[1731257432568,0.3787091,79643.0,79642.0,0.00142]
[1731257436374,0.37425375,79643.0,79642.0,0.00142]
[1731257436622,0.3787091,79643.0,79642.0,0.00142]
[1731257437463,0.29929237,79643.0,79642.0,0.00142]
[1731257438365,0.127565,79640.0,79639.0,0.03834]
[1731257438620,0.25350721,79640.0,79639.0,0.03834]
[1731257439941,0.12794221,79640.0,79639.0,0.03834]
[1731257440259,0.12794221,79640.0,79639.0,0.240206]
[1731257440697,0.12794221,79640.0,79639.0,0.11464]
[1731257441561,0.27546723,79640.0,79639.0,0.11464]
[1731257442662,0.14990223,79640.0,79639.0,0.11464]
[1731257443373,0.27546723,79640.0,79639.0,0.11464]
[1731257444696,0.35684164,79640.0,79639.0,0.11464]
[1731257445397,0.25339075,79640.0,79639.0,0.11464]
[1731257445602,0.25539075,79640.0,79639.0,0.11464]
[1731257446091,0.25339075,79640.0,79639.0,0.11464]
[1731257446388,0.25539075,79640.0,79639.0,0.11464]
[1731257447674,0.25339075,79640.0,79639.0,0.11464]
[1731257447878,0.25539075,79640.0,79639.0,0.11464]
[1731257448079,0.25339075,79640.0,79639.0,0.11464]
[1731257448279,0.25339075,79640.0,79639.0,0.11548]
[1731257448578,0.25539075,79640.0,79639.0,0.11548]
[1731257450695,0.25502716,79640.0,79639.0,0.11548]
[1731257455782,0.002,79631.0,79630.0,0.00142]
[1731257456668,0.251145,79635.0,79630.0,0.00142]
[1731257456897,0.125578,79632.0,79630.0,0.00142]
[1731257457102,0.12594221,79632.0,79630.0,0.00142]
[1731257458017,0.002,79631.0,79630.0,0.00142]
[1731257458269,0.25352121,79631.0,79630.0,0.00142]
[1731257458477,0.3294019,79631.0,79630.0,0.00142]
[1731257459744,0.3314019,79631.0,79630.0,0.00142]
[1731257459953,0.33585725,79631.0,79630.0,0.00142]
[1731257460167,0.33385725,79631.0,79630.0,0.00142]
[1731257460767,0.13239756,79631.0,79630.0,0.00142]
[1731257460968,0.25797656,79631.0,79630.0,0.04952]
[1731257461156,0.3380501,79631.0,79630.0,0.00142]
[1731257461398,0.41927616,79631.0,79630.0,0.00142]
[1731257461739,0.41727616,79631.0,79630.0,0.00142]
[1731257463366,0.41282081,79631.0,79630.0,0.00142]
[1731257468019,0.33274727,79631.0,79630.0,0.00142]
[1731257469288,0.12794221,79631.0,79630.0,0.13072]
[1731257469494,0.25352121,79631.0,79630.0,0.13072]
[1731257470048,0.12794221,79631.0,79630.0,0.13072]
[1731257470276,0.12794221,79631.0,79630.0,0.12706]
[1731257470452,0.25352121,79631.0,79630.0,0.12706]
[1731257470653,0.12794221,79631.0,79630.0,0.12706]
[1731257470857,0.25352121,79631.0,79630.0,0.12706]
[1731257471257,0.25352121,79631.0,79630.0,0.1279]
[1731257471963,0.12794221,79631.0,79630.0,0.1279]
[1731257472164,0.25352121,79631.0,79630.0,0.1279]
[1731257473990,0.12794221,79631.0,79630.0,0.1279]
[1731257475944,0.25352121,79631.0,79630.0,0.1279]
[1731257478622,0.12794221,79631.0,79630.0,0.1279]
[1731257478764,0.25352121,79631.0,79630.0,0.1279]
[1731257479962,0.12794221,79631.0,79630.0,0.1279]
[1731257480169,0.25352121,79631.0,79630.0,0.1279]
[1731257480596,0.12794221,79631.0,79630.0,0.1279]
[1731257481325,0.002,79631.0,79630.0,0.1279]
[1731257481760,0.00168,79640.0,79633.0,0.005]
[1731257481976,0.18833456,79639.0,79636.0,0.005]
[1731257482191,0.00168,79640.0,79639.0,0.1343]
[1731257484357,0.00168,79640.0,79639.0,0.13484465]
[1731257484696,0.00168,79640.0,79639.0,0.24737741]
[1731257484697,0.01018967,79640.0,79639.0,0.24737741]
[1731257485155,0.00168,79640.0,79639.0,0.24737741]
[1731257485562,0.00168,79640.0,79639.0,0.13484465]
[1731257486773,0.00168,79640.0,79639.0,0.14235586]
[1731257486970,0.00168,79640.0,79639.0,0.14484465]
[1731257487314,0.00168,79651.0,79643.0,0.13734465]
[1731257487443,0.00168,79651.0,79643.0,0.13985555]
[1731257488073,0.00168,79651.0,79643.0,0.13734465]
[1731257490103,0.00168,79651.0,79643.0,0.13494465]
[1731257492122,0.00168,79651.0,79643.0,0.12994465]
[1731257500383,0.00168,79651.0,79649.0,0.0026]
[1731257500728,0.00630212,79650.0,79649.0,0.0026]
[1731257501492,0.00057435,79650.0,79649.0,0.0026]
[1731257501993,0.00057435,79650.0,79649.0,0.00314465]
[1731257502199,0.00057435,79650.0,79649.0,0.12994465]
[1731257502447,0.00057435,79650.0,79649.0,0.13494465]
[1731257502642,0.00057435,79650.0,79649.0,0.13994465]
[1731257502845,0.00057435,79650.0,79649.0,0.14240921]
[1731257503132,0.00057435,79650.0,79649.0,0.26835142]
[1731257503573,0.00057435,79650.0,79649.0,0.27535142]
[1731257503795,0.19021739,79678.0,79667.0,0.23153437]
[1731257504008,0.19021739,79678.0,79667.0,0.12994465]
[1731257504227,0.19418043,79668.0,79667.0,0.12994465]
[1731257504436,0.19021739,79678.0,79675.0,0.0026]
[1731257504965,0.00188283,79678.0,79675.0,0.0026]
[1731257508048,0.00188283,79678.0,79677.0,0.0026]
[1731257508228,0.00188283,79678.0,79677.0,0.0476]
[1731257508442,0.00188283,79678.0,79677.0,0.12814465]
[1731257508644,0.00188283,79678.0,79677.0,0.13314465]
[1731257509846,0.18833456,79685.0,79681.0,0.00054465]
[1731257510212,0.00595299,79684.0,79681.0,0.00054465]
[1731257510658,0.04100989,79687.0,79681.0,0.00054465]
[1731257510866,0.00594646,79683.0,79681.0,0.00054465]
[1731257511079,0.31381456,79694.0,79681.0,0.00054465]
[1731257511292,0.18833456,79686.0,79681.0,0.00054465]
[1731257511495,0.12594221,79685.0,79680.0,0.0026]
[1731257511727,0.13190174,79685.0,79680.0,0.0026]
[1731257513836,0.25739574,79685.0,79680.0,0.0026]
[1731257514277,0.13190174,79685.0,79680.0,0.0026]
[1731257516586,0.17362905,79685.0,79680.0,0.0026]
[1731257517693,0.17530905,79685.0,79680.0,0.0026]
[1731257519895,0.17310816,79685.0,79680.0,0.0026]
[1731257520111,0.17404782,79685.0,79680.0,0.0026]
[1731257520576,0.250991,79684.0,79679.0,0.0026]
[1731257520780,0.125503,79679.0,79678.0,0.0026]
[1731257521011,0.125517,79670.0,79669.0,0.0026]
[1731257521267,0.12594221,79670.0,79669.0,0.0026]
[1731257521507,0.13211503,79670.0,79669.0,0.0026]
[1731257521924,0.25763203,79670.0,79669.0,0.0026]
[1731257522602,0.13211503,79670.0,79669.0,0.0026]
[1731257522830,0.50866903,79670.0,79669.0,0.0026]
[1731257523032,0.25763203,79670.0,79669.0,0.0026]
[1731257523244,0.12552,79669.0,79665.0,0.0026]
[1731257523468,0.125521,79668.0,79665.0,0.0026]
[1731257523680,0.00615909,79668.0,79665.0,0.0026]
[1731257524148,0.13168109,79668.0,79666.0,0.0026]
[1731257524359,0.00615909,79668.0,79667.0,0.0026]
[1731257524790,0.2919943,79670.0,79667.0,0.0026]
[1731257524998,0.00615909,79668.0,79667.0,0.0026]
[1731257525202,0.1664773,79670.0,79667.0,0.0026]
[1731257525406,0.00615909,79668.0,79667.0,0.0026]
[1731257525605,0.1664773,79670.0,79667.0,0.0026]
[1731257525807,0.00615909,79668.0,79667.0,0.0026]
[1731257526008,0.1664773,79670.0,79667.0,0.0026]
[1731257526236,0.00615909,79668.0,79667.0,0.0026]
[1731257526413,0.1664773,79670.0,79667.0,0.0026]
[1731257526596,0.00615909,79668.0,79667.0,0.0026]
[1731257526800,0.6983,79684.0,79673.0,0.0026]
[1731257527025,0.18833456,79676.0,79673.0,0.00314465]
[1731257527223,0.12594221,79683.0,79674.0,0.0467]
[1731257528204,0.04046364,79684.0,79676.0,0.00054465]
[1731257528398,0.00168,79685.0,79676.0,0.00054465]
[1731257528622,0.12762221,79685.0,79676.0,0.00054465]
[1731257528829,0.12762221,79685.0,79678.0,0.0815]
[1731257529033,0.16883807,79685.0,79678.0,0.0815]
[1731257533273,0.04289586,79685.0,79678.0,0.08204465]
[1731257533496,0.04289586,79685.0,79680.0,0.0026]
[1731257535617,0.04289586,79685.0,79679.0,0.0026]
[1731257535825,0.04289586,79685.0,79680.0,0.0026]
[1731257540894,0.00168,79685.0,79682.0,0.00314465]
[1731257541068,0.00168,79685.0,79684.0,0.00314465]
[1731257541296,0.00168,79685.0,79684.0,0.08964465]
[1731257543272,0.25168,79685.0,79684.0,0.08964465]
[1731257543681,0.2557547,79685.0,79684.0,0.08964465]
[1731257545693,0.2514547,79685.0,79684.0,0.08464465]
[1731257546714,0.2514547,79685.0,79684.0,0.0026]
[1731257547155,0.3769487,79685.0,79684.0,0.0026]
[1731257547901,0.2514547,79685.0,79684.0,0.0026]
[1731257549738,0.3769487,79685.0,79684.0,0.0026]
[1731257549932,0.2514547,79685.0,79684.0,0.0026]
[1731257551129,0.3769487,79685.0,79684.0,0.0026]
[1731257551330,0.2514547,79685.0,79684.0,0.0026]
[1731257551745,0.3786287,79685.0,79684.0,0.0026]
[1731257552008,0.2531347,79685.0,79684.0,0.0026]
[1731257553025,0.3786287,79685.0,79684.0,0.0026]
[1731257554219,0.2531347,79685.0,79684.0,0.0026]
[1731257554419,0.2531347,79685.0,79677.0,0.0815]
[1731257554640,0.2531347,79685.0,79684.0,0.0026]
[1731257556727,0.3786287,79685.0,79684.0,0.0026]
[1731257558043,0.125497,79683.0,79682.0,0.0026]
[1731257558466,0.13020964,79683.0,79682.0,0.0026]
[1731257560985,0.00471264,79683.0,79682.0,0.0026]
[1731257561193,0.50049721,79685.0,79682.0,0.0026]
[1731257561432,0.125496,79684.0,79683.0,0.0026]
[1731257562417,0.37500221,79685.0,79683.0,0.0026]
[1731257562660,0.50049621,79685.0,79684.0,0.0026]
[1731257565229,0.37500221,79685.0,79684.0,0.0026]
[1731257565424,0.50049621,79685.0,79684.0,0.0026]
[1731257565977,0.37500221,79685.0,79684.0,0.0026]
[1731257566191,0.50049621,79685.0,79684.0,0.0026]
[1731257568321,0.125495,79684.0,79683.0,0.0026]
[1731257569729,0.50049721,79685.0,79683.0,0.0026]
[1731257569951,0.50049621,79685.0,79684.0,0.0026]
[1731257571020,0.37500221,79685.0,79684.0,0.0026]
[1731257571235,0.50888609,79685.0,79684.0,0.0026]
[1731257572589,0.38339209,79685.0,79684.0,0.0026]
[1731257572796,0.50888609,79685.0,79684.0,0.0026]
[1731257573243,0.38339209,79685.0,79684.0,0.0026]
[1731257573895,0.38339209,79685.0,79684.0,0.00344]
[1731257577398,0.50888609,79685.0,79684.0,0.00344]
[1731257578312,0.50888609,79685.0,79684.0,0.00084]
[1731257579446,0.60988609,79685.0,79684.0,0.00084]
[1731257581201,0.61188609,79685.0,79684.0,0.00084]